[Event "Titled Tuesday Blitz June 27 Early 2023"]
[White "Pandey Srishti"]
[Black "Ambartsumova, Karina"]
[WhiteFideId "35093290"]
[BlackFideId "4166299"]
[WhiteElo "2446"]
[BlackElo "2554"]
[Result "0-1"]
[Round "11"]
[TimeControl "180+2"]
[Date "2023.06.27"]
[WhiteClock "0:00:09"]
[BlackClock "0:00:10"]
[Board "81"]

1. e4 {[%clk 0:03:00]}  c5 {[%clk 0:02:59]} 2. Nf3 {[%clk 0:03:00]}  Nc6 {[%clk 0:03:00]} 3. d4 {[%clk 0:03:00]}  cxd4 {[%clk 0:03:00]} 4. Nxd4 {[%clk 0:03:01]}  Qb6 {[%clk 0:03:01]} 5. Nb3 {[%clk 0:03:00]}  Nf6 {[%clk 0:03:01]} 6. Nc3 {[%clk 0:02:59]}  e6 {[%clk 0:03:02]} 7. Be3 {[%clk 0:02:58]}  Qc7 {[%clk 0:03:02]} 8. a3 {[%clk 0:02:57]}  a6 {[%clk 0:03:02]} 9. f4 {[%clk 0:02:53]}  d6 {[%clk 0:03:03]} 10. Qe2 {[%clk 0:02:52]}  b5 {[%clk 0:03:02]} 11. O-O-O {[%clk 0:02:50]}  Bb7 {[%clk 0:03:03]} 12. g4 {[%clk 0:02:48]}  Be7 {[%clk 0:02:52]} 13. g5 {[%clk 0:02:48]}  Nd7 {[%clk 0:02:52]} 14. f5 {[%clk 0:02:43]}  Nde5 {[%clk 0:02:37]} 15. Bh3 {[%clk 0:02:37]}  Bc8 {[%clk 0:02:13]} 16. Rhf1 {[%clk 0:02:33]}  O-O {[%clk 0:01:53]} 17. f6 {[%clk 0:02:15]}  Bd8 {[%clk 0:01:53]} 18. Bg2 {[%clk 0:02:05]}  b4 {[%clk 0:01:46]} 19. axb4 {[%clk 0:02:04]}  Nxb4 {[%clk 0:01:47]} 20. fxg7 {[%clk 0:02:03]}  Kxg7 {[%clk 0:01:46]} 21. Bd4 {[%clk 0:02:03]}  Nc6 {[%clk 0:01:45]} 22. Qh5 {[%clk 0:01:57]}  Rb8 {[%clk 0:01:21]} 23. Qh6+ {[%clk 0:01:56]}  Kg8 {[%clk 0:01:21]} 24. Rf4 {[%clk 0:01:46]}  Qe7 {[%clk 0:01:07]} 25. Rg1 {[%clk 0:01:15]}  Rxb3 {[%clk 0:01:02]} 26. Bf1 {[%clk 0:00:58]}  Kh8 {[%clk 0:00:23]} 27. Rh4 {[%clk 0:00:48]}  f6 {[%clk 0:00:19]} 28. gxf6 {[%clk 0:00:46]}  Rxf6 {[%clk 0:00:19]} 29. Bxe5 {[%clk 0:00:39]}  Nxe5 {[%clk 0:00:18]} 30. Qh5 {[%clk 0:00:32]}  Rb7 {[%clk 0:00:15]} 31. Be2 {[%clk 0:00:27]}  Ng6 {[%clk 0:00:13]} 32. Rhg4 {[%clk 0:00:19]}  Kg7 {[%clk 0:00:13]} 33. Bd3 {[%clk 0:00:17]}  e5 {[%clk 0:00:13]} 34. R4g2 {[%clk 0:00:15]}  Be6 {[%clk 0:00:13]} 35. Nd5 {[%clk 0:00:15]}  Bxd5 {[%clk 0:00:13]} 36. exd5 {[%clk 0:00:16]}  e4 {[%clk 0:00:14]} 37. Be2 {[%clk 0:00:12]}  Qe5 {[%clk 0:00:13]} 38. Qg4 {[%clk 0:00:10]}  Qxb2+ {[%clk 0:00:13]} 39. Kd1 {[%clk 0:00:09]}  Qd4+ {[%clk 0:00:12]} 40. Ke1 {[%clk 0:00:10]}  Rb1+ {[%clk 0:00:11]} 41. Bd1 {[%clk 0:00:10]}  Ba5+ {[%clk 0:00:09]} 42. c3 {[%clk 0:00:09]}  Bxc3+ {[%clk 0:00:09]} 43. Ke2 {[%clk 0:00:09]}  Qd2# {[%clk 0:00:10]} 0-1


[Site "https://www.chess.com"]

[Event "Titled Tuesday Blitz June 27 Early 2023"]
[White "Skliarov, Viktor"]
[Black "KorolDimitriy75"]
[WhiteFideId "14106736"]
[WhiteElo "2547"]
[BlackElo "2432"]
[Result "1-0"]
[Round "11"]
[TimeControl "180+2"]
[Date "2023.06.27"]
[WhiteClock "0:00:15"]
[BlackClock "0:00:01"]
[Board "82"]

1. e4 {[%clk 0:03:00]}  c5 {[%clk 0:03:00]} 2. Nf3 {[%clk 0:03:00]}  g6 {[%clk 0:03:00]} 3. c3 {[%clk 0:02:57]}  d5 {[%clk 0:02:58]} 4. exd5 {[%clk 0:02:52]}  Qxd5 {[%clk 0:02:59]} 5. Na3 {[%clk 0:02:52]}  Bg7 {[%clk 0:02:54]} 6. Bc4 {[%clk 0:02:51]}  Qd8 {[%clk 0:02:52]} 7. O-O {[%clk 0:02:50]}  Nf6 {[%clk 0:02:51]} 8. d4 {[%clk 0:02:50]}  cxd4 {[%clk 0:02:49]} 9. Nb5 {[%clk 0:02:50]}  O-O {[%clk 0:02:47]} 10. Bf4 {[%clk 0:02:49]}  Nc6 {[%clk 0:02:34]} 11. Nbxd4 {[%clk 0:02:43]}  Bd7 {[%clk 0:02:09]} 12. Nxc6 {[%clk 0:02:38]}  Bxc6 {[%clk 0:02:10]} 13. Ne5 {[%clk 0:02:39]}  Bd5 {[%clk 0:02:05]} 14. Qb3 {[%clk 0:02:29]}  Bxc4 {[%clk 0:01:56]} 15. Nxc4 {[%clk 0:02:27]}  b6 {[%clk 0:01:38]} 16. Rad1 {[%clk 0:02:27]}  Qc8 {[%clk 0:01:36]} 17. Rfe1 {[%clk 0:02:26]}  e6 {[%clk 0:01:27]} 18. Nd6 {[%clk 0:02:03]}  Qa6 {[%clk 0:01:26]} 19. c4 {[%clk 0:01:55]}  Rfd8 {[%clk 0:01:21]} 20. a3 {[%clk 0:01:46]}  h6 {[%clk 0:01:18]} 21. h3 {[%clk 0:01:43]}  Rd7 {[%clk 0:01:18]} 22. Qf3 {[%clk 0:01:35]}  Rad8 {[%clk 0:01:17]} 23. Be5 {[%clk 0:01:35]}  Ne8 {[%clk 0:01:00]} 24. Bxg7 {[%clk 0:00:44]}  Nxg7 {[%clk 0:00:59]} 25. Ne4 {[%clk 0:00:44]}  Rxd1 {[%clk 0:00:51]} 26. Rxd1 {[%clk 0:00:41]}  Rxd1+ {[%clk 0:00:45]} 27. Qxd1 {[%clk 0:00:41]}  Qc8 {[%clk 0:00:36]} 28. Nf6+ {[%clk 0:00:40]}  Kh8 {[%clk 0:00:34]} 29. Qd2 {[%clk 0:00:38]}  Nf5 {[%clk 0:00:21]} 30. g4 {[%clk 0:00:38]}  Kg7 {[%clk 0:00:17]} 31. Qc3 {[%clk 0:00:24]}  Qd8 {[%clk 0:00:11]} 32. Nh5+ {[%clk 0:00:16]}  Kg8 {[%clk 0:00:11]} 33. gxf5 {[%clk 0:00:12]}  gxh5 {[%clk 0:00:11]} 34. fxe6 {[%clk 0:00:13]}  fxe6 {[%clk 0:00:10]} 35. Kf1 {[%clk 0:00:13]}  Qd1+ {[%clk 0:00:09]} 36. Kg2 {[%clk 0:00:13]}  Qe2 {[%clk 0:00:09]} 37. Qd4 {[%clk 0:00:12]}  Kf7 {[%clk 0:00:09]} 38. b4 {[%clk 0:00:12]}  Qc2 {[%clk 0:00:05]} 39. c5 {[%clk 0:00:12]}  Qg6+ {[%clk 0:00:04]} 40. Kf3 {[%clk 0:00:11]}  Qf5+ {[%clk 0:00:04]} 41. Qf4 {[%clk 0:00:11]}  bxc5 {[%clk 0:00:02]} 42. bxc5 {[%clk 0:00:11]}  Ke7 {[%clk 0:00:02]} 43. Qxf5 {[%clk 0:00:11]}  exf5 {[%clk 0:00:03]} 44. Kf4 {[%clk 0:00:11]}  Kd7 {[%clk 0:00:04]} 45. Kxf5 {[%clk 0:00:11]}  Kc6 {[%clk 0:00:05]} 46. Kg6 {[%clk 0:00:12]}  Kxc5 {[%clk 0:00:05]} 47. f4 {[%clk 0:00:12]}  a5 {[%clk 0:00:03]} 48. f5 {[%clk 0:00:13]}  Kc4 {[%clk 0:00:03]} 49. f6 {[%clk 0:00:13]}  Kb3 {[%clk 0:00:02]} 50. f7 {[%clk 0:00:14]}  Kxa3 {[%clk 0:00:03]} 51. f8=Q+ {[%clk 0:00:15]}  Kb3 {[%clk 0:00:01]} 52. Qxh6 {[%clk 0:00:15]} 1-0


[Site "https://www.chess.com"]

[Event "Titled Tuesday Blitz June 27 Early 2023"]
[White "Perez, Maximiliano"]
[Black "Rom, Jasper"]
[WhiteFideId "117234"]
[BlackFideId "2023733"]
[WhiteElo "2537"]
[BlackElo "2430"]
[Result "1-0"]
[Round "11"]
[TimeControl "180+2"]
[Date "2023.06.27"]
[WhiteClock "0:01:58"]
[BlackClock "0:00:00"]
[Board "83"]

1. e4 {[%clk 0:03:00]}  e6 {[%clk 0:02:58]} 2. d3 {[%clk 0:02:59]}  d5 {[%clk 0:02:59]} 3. Nd2 {[%clk 0:03:00]}  Nf6 {[%clk 0:02:58]} 4. Ngf3 {[%clk 0:03:01]}  dxe4 {[%clk 0:02:58]} 5. dxe4 {[%clk 0:03:02]}  Bc5 {[%clk 0:02:58]} 6. Be2 {[%clk 0:02:56]}  Nc6 {[%clk 0:02:57]} 7. O-O {[%clk 0:02:56]}  e5 {[%clk 0:02:56]} 8. c3 {[%clk 0:02:56]}  a5 {[%clk 0:02:56]} 9. h3 {[%clk 0:02:55]}  O-O {[%clk 0:02:56]} 10. Nc4 {[%clk 0:02:53]}  Qe7 {[%clk 0:02:55]} 11. Qc2 {[%clk 0:02:53]}  h6 {[%clk 0:02:45]} 12. a4 {[%clk 0:02:51]}  Nh5 {[%clk 0:02:35]} 13. Be3 {[%clk 0:02:40]}  Bxe3 {[%clk 0:02:23]} 14. Nxe3 {[%clk 0:02:41]}  Nf4 {[%clk 0:02:20]} 15. Nd5 {[%clk 0:02:41]}  Nxd5 {[%clk 0:02:12]} 16. exd5 {[%clk 0:02:42]}  Nb8 {[%clk 0:02:02]} 17. Rfe1 {[%clk 0:02:39]}  Qf6 {[%clk 0:01:40]} 18. Qe4 {[%clk 0:02:34]}  Nd7 {[%clk 0:01:20]} 19. Bb5 {[%clk 0:02:33]}  Re8 {[%clk 0:01:09]} 20. Bxd7 {[%clk 0:02:32]}  Bxd7 {[%clk 0:01:09]} 21. Nxe5 {[%clk 0:02:33]}  Bf5 {[%clk 0:00:45]} 22. Qd4 {[%clk 0:02:32]}  Rad8 {[%clk 0:00:37]} 23. Nf3 {[%clk 0:01:57]}  Rxe1+ {[%clk 0:00:18]} 24. Rxe1 {[%clk 0:01:58]}  Qxd4 {[%clk 0:00:17]} 25. Nxd4 {[%clk 0:01:59]}  Rxd5 {[%clk 0:00:17]} 26. Re8+ {[%clk 0:01:59]}  Kh7 {[%clk 0:00:17]} 27. Re7 {[%clk 0:02:00]}  Bg6 {[%clk 0:00:11]} 28. Rxc7 {[%clk 0:01:59]}  b6 {[%clk 0:00:00]} 29. Rc6 {[%clk 0:01:58]} 1-0


[Site "https://www.chess.com"]

[Event "Titled Tuesday Blitz June 27 Early 2023"]
[White "Tologon tegin, Semetei"]
[Black "Kopczynski, Michal"]
[WhiteFideId "13800574"]
[BlackFideId "1124200"]
[WhiteElo "2535"]
[BlackElo "2423"]
[Result "0-1"]
[Round "11"]
[TimeControl "180+2"]
[Date "2023.06.27"]
[WhiteClock "0:00:00"]
[BlackClock "0:00:15"]
[Board "84"]

1. g3 {[%clk 0:02:54]}  e5 {[%clk 0:02:58]} 2. Bg2 {[%clk 0:02:49]}  f5 {[%clk 0:02:59]} 3. c4 {[%clk 0:02:45]}  Nf6 {[%clk 0:02:58]} 4. Nc3 {[%clk 0:02:45]}  c6 {[%clk 0:02:58]} 5. d3 {[%clk 0:02:43]}  Be7 {[%clk 0:02:57]} 6. e4 {[%clk 0:02:43]}  O-O {[%clk 0:02:56]} 7. Nge2 {[%clk 0:02:43]}  fxe4 {[%clk 0:02:55]} 8. dxe4 {[%clk 0:02:42]}  d6 {[%clk 0:02:55]} 9. O-O {[%clk 0:02:42]}  Be6 {[%clk 0:02:55]} 10. b3 {[%clk 0:02:41]}  Qd7 {[%clk 0:02:55]} 11. f4 {[%clk 0:02:35]}  Bh3 {[%clk 0:02:55]} 12. f5 {[%clk 0:02:27]}  Bxg2 {[%clk 0:02:50]} 13. Kxg2 {[%clk 0:02:28]}  Na6 {[%clk 0:02:50]} 14. Be3 {[%clk 0:02:26]}  Rad8 {[%clk 0:02:42]} 15. Bxa7 {[%clk 0:02:20]}  d5 {[%clk 0:02:24]} 16. cxd5 {[%clk 0:02:19]}  cxd5 {[%clk 0:02:24]} 17. Bb6 {[%clk 0:02:17]}  d4 {[%clk 0:02:22]} 18. Bxd8 {[%clk 0:02:16]}  Bxd8 {[%clk 0:02:22]} 19. Na4 {[%clk 0:02:04]}  Nxe4 {[%clk 0:02:20]} 20. Qd3 {[%clk 0:02:03]}  Qd5 {[%clk 0:02:14]} 21. Qc4 {[%clk 0:01:47]}  Qxc4 {[%clk 0:02:08]} 22. bxc4 {[%clk 0:01:48]}  Nb4 {[%clk 0:02:02]} 23. g4 {[%clk 0:00:53]}  Nc2 {[%clk 0:01:58]} 24. Rab1 {[%clk 0:00:50]}  Ne3+ {[%clk 0:01:58]} 25. Kg1 {[%clk 0:00:47]}  Nd2 {[%clk 0:01:49]} 26. Rfc1 {[%clk 0:00:31]}  Nxb1 {[%clk 0:01:35]} 27. Rxb1 {[%clk 0:00:32]}  Nxg4 {[%clk 0:01:27]} 28. Rxb7 {[%clk 0:00:30]}  d3 {[%clk 0:01:25]} 29. Ng3 {[%clk 0:00:27]}  d2 {[%clk 0:01:18]} 30. Nc3 {[%clk 0:00:24]}  Ne3 {[%clk 0:01:11]} 31. Rd7 {[%clk 0:00:23]}  Bb6 {[%clk 0:01:04]} 32. Kh1 {[%clk 0:00:20]}  Rd8 {[%clk 0:00:58]} 33. Rxd8+ {[%clk 0:00:18]}  Bxd8 {[%clk 0:00:59]} 34. Nge4 {[%clk 0:00:14]}  Ba5 {[%clk 0:00:52]} 35. Nxd2 {[%clk 0:00:13]}  Bxc3 {[%clk 0:00:52]} 36. Ne4 {[%clk 0:00:13]}  Bd4 {[%clk 0:00:51]} 37. f6 {[%clk 0:00:12]}  g6 {[%clk 0:00:50]} 38. c5 {[%clk 0:00:12]}  Kf7 {[%clk 0:00:48]} 39. c6 {[%clk 0:00:12]}  Nd5 {[%clk 0:00:47]} 40. a4 {[%clk 0:00:10]}  Bb6 {[%clk 0:00:47]} 41. Kg2 {[%clk 0:00:09]}  Nxf6 {[%clk 0:00:48]} 42. Nc5 {[%clk 0:00:05]}  Nd5 {[%clk 0:00:43]} 43. Nb7 {[%clk 0:00:03]}  Ke7 {[%clk 0:00:37]} 44. a5 {[%clk 0:00:04]}  Ba7 {[%clk 0:00:30]} 45. Kf3 {[%clk 0:00:04]}  Nb4 {[%clk 0:00:30]} 46. c7 {[%clk 0:00:02]}  Kd7 {[%clk 0:00:29]} 47. Nd6 {[%clk 0:00:02]}  Kxc7 {[%clk 0:00:29]} 48. Nf7 {[%clk 0:00:02]}  Nc6 {[%clk 0:00:28]} 49. a6 {[%clk 0:00:02]}  Kb6 {[%clk 0:00:27]} 50. Ng5 {[%clk 0:00:02]}  h6 {[%clk 0:00:26]} 51. Nf7 {[%clk 0:00:02]}  h5 {[%clk 0:00:26]} 52. Nh8 {[%clk 0:00:02]}  g5 {[%clk 0:00:25]} 53. Nf7 {[%clk 0:00:03]}  g4+ {[%clk 0:00:23]} 54. Ke4 {[%clk 0:00:03]}  Kxa6 {[%clk 0:00:23]} 55. Nh8 {[%clk 0:00:01]}  Bg1 {[%clk 0:00:16]} 56. Ng6 {[%clk 0:00:00]}  Bxh2 {[%clk 0:00:15]} 0-1


[Site "https://www.chess.com"]

[Event "Titled Tuesday Blitz June 27 Early 2023"]
[White "Shuvalov, Evgenij"]
[Black "Estrada Nieto, Julian"]
[WhiteFideId "4187237"]
[BlackFideId "5101018"]
[WhiteElo "2499"]
[BlackElo "2491"]
[Result "0-1"]
[Round "11"]
[TimeControl "180+2"]
[Date "2023.06.27"]
[WhiteClock "0:00:21"]
[BlackClock "0:00:37"]
[Board "89"]

1. d4 {[%clk 0:02:54]}  d5 {[%clk 0:02:59]} 2. c4 {[%clk 0:02:54]}  dxc4 {[%clk 0:02:59]} 3. Nf3 {[%clk 0:02:53]}  Nf6 {[%clk 0:02:59]} 4. e3 {[%clk 0:02:52]}  e6 {[%clk 0:02:59]} 5. Bxc4 {[%clk 0:02:52]}  a6 {[%clk 0:03:00]} 6. a4 {[%clk 0:02:50]}  c5 {[%clk 0:03:00]} 7. O-O {[%clk 0:02:49]}  Nc6 {[%clk 0:02:57]} 8. dxc5 {[%clk 0:02:48]}  Bxc5 {[%clk 0:02:55]} 9. Qe2 {[%clk 0:02:47]}  Qc7 {[%clk 0:02:50]} 10. Nc3 {[%clk 0:02:44]}  O-O {[%clk 0:02:50]} 11. e4 {[%clk 0:02:43]}  Ng4 {[%clk 0:02:49]} 12. h3 {[%clk 0:02:39]}  Nd4 {[%clk 0:02:49]} 13. hxg4 {[%clk 0:02:24]}  Nxe2+ {[%clk 0:02:49]} 14. Bxe2 {[%clk 0:02:25]}  Bd7 {[%clk 0:02:40]} 15. g5 {[%clk 0:02:21]}  Bc6 {[%clk 0:02:40]} 16. Bd3 {[%clk 0:02:19]}  Rfd8 {[%clk 0:02:39]} 17. Bc2 {[%clk 0:02:18]}  Bb4 {[%clk 0:02:30]} 18. Bd2 {[%clk 0:02:14]}  Rd7 {[%clk 0:02:23]} 19. Rfc1 {[%clk 0:02:09]}  Qa5 {[%clk 0:02:14]} 20. Be1 {[%clk 0:02:05]}  Rad8 {[%clk 0:02:12]} 21. g3 {[%clk 0:02:03]}  Qb6 {[%clk 0:01:55]} 22. Kg2 {[%clk 0:02:00]}  a5 {[%clk 0:01:55]} 23. Ne5 {[%clk 0:01:51]}  Rd4 {[%clk 0:01:47]} 24. Nxc6 {[%clk 0:01:45]}  bxc6 {[%clk 0:01:41]} 25. Rab1 {[%clk 0:01:40]}  Qb7 {[%clk 0:01:36]} 26. Rd1 {[%clk 0:01:26]}  Qe7 {[%clk 0:01:35]} 27. f4 {[%clk 0:01:17]}  Rxd1 {[%clk 0:01:28]} 28. Rxd1 {[%clk 0:01:17]}  Rxd1 {[%clk 0:01:28]} 29. Bxd1 {[%clk 0:01:16]}  c5 {[%clk 0:01:22]} 30. Be2 {[%clk 0:01:13]}  Qd7 {[%clk 0:01:20]} 31. Kf3 {[%clk 0:01:10]}  Qc6 {[%clk 0:01:15]} 32. Bc4 {[%clk 0:01:07]}  Kf8 {[%clk 0:01:13]} 33. Bd2 {[%clk 0:00:49]}  f5 {[%clk 0:01:09]} 34. gxf6 {[%clk 0:00:48]}  gxf6 {[%clk 0:01:09]} 35. g4 {[%clk 0:00:49]}  f5 {[%clk 0:01:02]} 36. gxf5 {[%clk 0:00:49]}  exf5 {[%clk 0:01:02]} 37. Bd5 {[%clk 0:00:49]}  fxe4+ {[%clk 0:01:01]} 38. Bxe4 {[%clk 0:00:50]}  Qd7 {[%clk 0:00:57]} 39. Be3 {[%clk 0:00:44]}  Qh3+ {[%clk 0:00:44]} 40. Ke2 {[%clk 0:00:44]}  Qh2+ {[%clk 0:00:42]} 41. Kd3 {[%clk 0:00:42]}  Qxb2 {[%clk 0:00:41]} 42. Nd5 {[%clk 0:00:24]}  Qb1+ {[%clk 0:00:38]} 43. Kc4 {[%clk 0:00:22]}  Qxe4+ {[%clk 0:00:37]} 44. Kb5 {[%clk 0:00:21]}  Qxd5 {[%clk 0:00:37]} 0-1


[Site "https://www.chess.com"]

[Event "Titled Tuesday Blitz June 27 Early 2023"]
[White "Bueno, Alfeu Junior Varela"]
[Black "Baches Garcia, Guillermo"]
[WhiteFideId "2108879"]
[BlackFideId "2209764"]
[WhiteElo "2333"]
[BlackElo "2493"]
[Result "1-0"]
[Round "11"]
[TimeControl "180+2"]
[Date "2023.06.27"]
[WhiteClock "0:00:07"]
[BlackClock "0:00:00"]
[Board "90"]

1. e4 {[%clk 0:03:00]}  d5 {[%clk 0:02:58]} 2. exd5 {[%clk 0:03:00]}  Qxd5 {[%clk 0:02:59]} 3. Nc3 {[%clk 0:03:00]}  Qa5 {[%clk 0:02:59]} 4. d4 {[%clk 0:03:00]}  Nf6 {[%clk 0:02:59]} 5. Nf3 {[%clk 0:03:00]}  Bf5 {[%clk 0:02:59]} 6. Bc4 {[%clk 0:03:00]}  e6 {[%clk 0:02:54]} 7. Qe2 {[%clk 0:02:58]}  Bb4 {[%clk 0:02:49]} 8. Bd2 {[%clk 0:02:56]}  O-O {[%clk 0:02:22]} 9. O-O-O {[%clk 0:02:45]}  Nc6 {[%clk 0:02:17]} 10. h3 {[%clk 0:02:14]}  Rad8 {[%clk 0:02:08]} 11. g4 {[%clk 0:02:14]}  Bg6 {[%clk 0:02:00]} 12. a3 {[%clk 0:01:59]}  Bxa3 {[%clk 0:01:51]} 13. bxa3 {[%clk 0:01:57]}  Qxa3+ {[%clk 0:01:50]} 14. Kb1 {[%clk 0:01:57]}  Rxd4 {[%clk 0:01:28]} 15. Nb5 {[%clk 0:01:22]}  Qc5 {[%clk 0:00:45]} 16. Nfxd4 {[%clk 0:01:13]}  Nxd4 {[%clk 0:00:44]} 17. Nxd4 {[%clk 0:01:11]}  Qxd4 {[%clk 0:00:43]} 18. Be3 {[%clk 0:01:05]}  Qc3 {[%clk 0:00:38]} 19. Bd4 {[%clk 0:00:55]}  Qb4+ {[%clk 0:00:34]} 20. Kc1 {[%clk 0:00:54]}  Ne4 {[%clk 0:00:30]} 21. Bb2 {[%clk 0:00:33]}  b5 {[%clk 0:00:24]} 22. Bd3 {[%clk 0:00:32]}  Nc3 {[%clk 0:00:20]} 23. Qd2 {[%clk 0:00:29]}  Na2+ {[%clk 0:00:13]} 24. Kb1 {[%clk 0:00:29]}  Qa4 {[%clk 0:00:14]} 25. Bxg6 {[%clk 0:00:24]}  hxg6 {[%clk 0:00:13]} 26. Qd3 {[%clk 0:00:20]}  Nb4 {[%clk 0:00:12]} 27. Qb3 {[%clk 0:00:20]}  Qxb3 {[%clk 0:00:13]} 28. cxb3 {[%clk 0:00:20]}  Nd5 {[%clk 0:00:13]} 29. Rc1 {[%clk 0:00:17]}  a5 {[%clk 0:00:14]} 30. Rc5 {[%clk 0:00:17]}  a4 {[%clk 0:00:14]} 31. Rxb5 {[%clk 0:00:17]}  axb3 {[%clk 0:00:15]} 32. Rxb3 {[%clk 0:00:18]}  Ra8 {[%clk 0:00:14]} 33. Rc1 {[%clk 0:00:18]}  Ra4 {[%clk 0:00:15]} 34. Rb8+ {[%clk 0:00:16]}  Kh7 {[%clk 0:00:14]} 35. Rc2 {[%clk 0:00:15]}  g5 {[%clk 0:00:14]} 36. Rb5 {[%clk 0:00:15]}  Kg6 {[%clk 0:00:14]} 37. Rxd5 {[%clk 0:00:15]}  exd5 {[%clk 0:00:14]} 38. Rxc7 {[%clk 0:00:16]}  f6 {[%clk 0:00:14]} 39. Rc2 {[%clk 0:00:15]}  Rf4 {[%clk 0:00:14]} 40. Bc1 {[%clk 0:00:11]}  Rf3 {[%clk 0:00:13]} 41. Rd2 {[%clk 0:00:11]}  Rxh3 {[%clk 0:00:13]} 42. Rxd5 {[%clk 0:00:11]}  Rh1 {[%clk 0:00:12]} 43. Kc2 {[%clk 0:00:11]}  Rg1 {[%clk 0:00:12]} 44. Rd4 {[%clk 0:00:10]}  Rg2 {[%clk 0:00:11]} 45. Be3 {[%clk 0:00:10]}  Kf7 {[%clk 0:00:10]} 46. Rd7+ {[%clk 0:00:10]}  Kg6 {[%clk 0:00:09]} 47. Rd4 {[%clk 0:00:11]}  Kf7 {[%clk 0:00:09]} 48. Kd3 {[%clk 0:00:11]}  g6 {[%clk 0:00:10]} 49. Ke2 {[%clk 0:00:10]}  f5 {[%clk 0:00:09]} 50. Bxg5 {[%clk 0:00:08]}  fxg4 {[%clk 0:00:09]} 51. Ke3 {[%clk 0:00:06]}  g3 {[%clk 0:00:09]} 52. f4 {[%clk 0:00:06]}  Ra2 {[%clk 0:00:07]} 53. Kf3 {[%clk 0:00:05]}  g2 {[%clk 0:00:07]} 54. Rd1 {[%clk 0:00:05]}  Ke6 {[%clk 0:00:07]} 55. Rg1 {[%clk 0:00:05]}  Kf5 {[%clk 0:00:07]} 56. Rxg2 {[%clk 0:00:04]}  Ra3+ {[%clk 0:00:07]} 57. Kf2 {[%clk 0:00:04]}  Ra2+ {[%clk 0:00:08]} 58. Kg1 {[%clk 0:00:05]}  Ra1+ {[%clk 0:00:08]} 59. Kh2 {[%clk 0:00:05]}  Ra3 {[%clk 0:00:09]} 60. Rc2 {[%clk 0:00:05]}  Rb3 {[%clk 0:00:09]} 61. Rc6 {[%clk 0:00:04]}  Rb2+ {[%clk 0:00:08]} 62. Kg3 {[%clk 0:00:04]}  Rb3+ {[%clk 0:00:08]} 63. Kf2 {[%clk 0:00:05]}  Kg4 {[%clk 0:00:08]} 64. Ke2 {[%clk 0:00:05]}  Rb2+ {[%clk 0:00:08]} 65. Kd3 {[%clk 0:00:05]}  Kh5 {[%clk 0:00:08]} 66. Rc8 {[%clk 0:00:05]}  Rb3+ {[%clk 0:00:09]} 67. Kc4 {[%clk 0:00:05]}  Re3 {[%clk 0:00:08]} 68. Rh8+ {[%clk 0:00:06]}  Kg4 {[%clk 0:00:08]} 69. Kd5 {[%clk 0:00:06]}  Re2 {[%clk 0:00:08]} 70. Rf8 {[%clk 0:00:06]}  Rd2+ {[%clk 0:00:07]} 71. Ke6 {[%clk 0:00:07]}  Re2+ {[%clk 0:00:08]} 72. Kf6 {[%clk 0:00:07]}  Re8 {[%clk 0:00:00]} 73. Rxe8 {[%clk 0:00:07]} 1-0


[Site "https://www.chess.com"]

[Event "Titled Tuesday Blitz June 27 Early 2023"]
[White "Nithyalakshmi, Sivanesan"]
[Black "Bilan, Danila"]
[WhiteFideId "5706955"]
[BlackFideId "24161918"]
[WhiteElo "2349"]
[BlackElo "2507"]
[Result "0-1"]
[Round "11"]
[TimeControl "180+2"]
[Date "2023.06.27"]
[WhiteClock "0:00:12"]
[BlackClock "0:00:10"]
[Board "94"]

1. e4 {[%clk 0:02:57]}  c6 {[%clk 0:02:55]} 2. d4 {[%clk 0:02:56]}  d5 {[%clk 0:02:55]} 3. exd5 {[%clk 0:02:56]}  cxd5 {[%clk 0:02:55]} 4. Bd3 {[%clk 0:02:56]}  Nc6 {[%clk 0:02:55]} 5. c3 {[%clk 0:02:56]}  Qc7 {[%clk 0:02:55]} 6. Ne2 {[%clk 0:02:55]}  Bg4 {[%clk 0:02:54]} 7. f3 {[%clk 0:02:52]}  Bd7 {[%clk 0:02:55]} 8. Bf4 {[%clk 0:02:51]}  e5 {[%clk 0:02:55]} 9. dxe5 {[%clk 0:02:43]}  Nxe5 {[%clk 0:02:55]} 10. Nd4 {[%clk 0:02:36]}  Nxd3+ {[%clk 0:02:49]} 11. Qxd3 {[%clk 0:02:34]}  Qxf4 {[%clk 0:02:49]} 12. Nd2 {[%clk 0:02:27]}  Nf6 {[%clk 0:02:36]} 13. Qe2+ {[%clk 0:02:21]}  Be7 {[%clk 0:02:25]} 14. O-O {[%clk 0:02:19]}  O-O {[%clk 0:02:11]} 15. Qxe7 {[%clk 0:02:06]}  Qxd2 {[%clk 0:02:10]} 16. Rf2 {[%clk 0:02:01]}  Qd3 {[%clk 0:01:49]} 17. Qb4 {[%clk 0:01:50]}  b6 {[%clk 0:01:45]} 18. Qb3 {[%clk 0:01:48]}  Rfe8 {[%clk 0:01:42]} 19. Rd1 {[%clk 0:01:45]}  Qe3 {[%clk 0:01:35]} 20. Nc2 {[%clk 0:01:45]}  Qf4 {[%clk 0:01:24]} 21. Nb4 {[%clk 0:01:32]}  Be6 {[%clk 0:00:45]} 22. g3 {[%clk 0:01:29]}  Qc7 {[%clk 0:00:37]} 23. Rd4 {[%clk 0:01:22]}  h6 {[%clk 0:00:32]} 24. Kg2 {[%clk 0:01:21]}  Rad8 {[%clk 0:00:30]} 25. Qd1 {[%clk 0:01:15]}  a5 {[%clk 0:00:29]} 26. Nd3 {[%clk 0:01:15]}  Bf5 {[%clk 0:00:27]} 27. Nf4 {[%clk 0:01:14]}  Re5 {[%clk 0:00:24]} 28. Rfd2 {[%clk 0:01:10]}  Qc6 {[%clk 0:00:17]} 29. c4 {[%clk 0:01:08]}  Rde8 {[%clk 0:00:14]} 30. cxd5 {[%clk 0:01:08]}  Qd6 {[%clk 0:00:13]} 31. Rc4 {[%clk 0:01:02]}  Re1 {[%clk 0:00:13]} 32. Qb3 {[%clk 0:00:59]}  g5 {[%clk 0:00:12]} 33. Rc6 {[%clk 0:00:55]}  Qe5 {[%clk 0:00:12]} 34. Qc3 {[%clk 0:00:32]}  gxf4 {[%clk 0:00:11]} 35. Qxe5 {[%clk 0:00:31]}  R8xe5 {[%clk 0:00:11]} 36. Rxf6 {[%clk 0:00:31]}  R1e2+ {[%clk 0:00:08]} 37. Rxe2 {[%clk 0:00:31]}  Rxe2+ {[%clk 0:00:09]} 38. Kf1 {[%clk 0:00:30]}  Bd3 {[%clk 0:00:09]} 39. Rxf4 {[%clk 0:00:26]}  Re5+ {[%clk 0:00:06]} 40. Kg2 {[%clk 0:00:24]}  Rxd5 {[%clk 0:00:06]} 41. Kh3 {[%clk 0:00:22]}  Kg7 {[%clk 0:00:06]} 42. g4 {[%clk 0:00:21]}  Bf1+ {[%clk 0:00:06]} 43. Kg3 {[%clk 0:00:20]}  Rd2 {[%clk 0:00:06]} 44. Rf5 {[%clk 0:00:19]}  Rg2+ {[%clk 0:00:06]} 45. Kf4 {[%clk 0:00:19]}  Rxb2 {[%clk 0:00:06]} 46. h4 {[%clk 0:00:18]}  Rxa2 {[%clk 0:00:06]} 47. Re5 {[%clk 0:00:18]}  Ra4+ {[%clk 0:00:06]} 48. Kg3 {[%clk 0:00:17]}  Bd3 {[%clk 0:00:06]} 49. Re3 {[%clk 0:00:17]}  Bg6 {[%clk 0:00:06]} 50. Rb3 {[%clk 0:00:17]}  Rb4 {[%clk 0:00:06]} 51. Ra3 {[%clk 0:00:18]}  a4 {[%clk 0:00:06]} 52. Kf2 {[%clk 0:00:18]}  b5 {[%clk 0:00:06]} 53. Ke2 {[%clk 0:00:17]}  Rb3 {[%clk 0:00:06]} 54. Ra1 {[%clk 0:00:17]}  a3 {[%clk 0:00:06]} 55. Kd2 {[%clk 0:00:18]}  b4 {[%clk 0:00:06]} 56. Kc1 {[%clk 0:00:17]}  Rb2 {[%clk 0:00:07]} 57. f4 {[%clk 0:00:17]}  Be4 {[%clk 0:00:06]} 58. f5 {[%clk 0:00:17]}  Rh2 {[%clk 0:00:06]} 59. g5 {[%clk 0:00:13]}  hxg5 {[%clk 0:00:06]} 60. hxg5 {[%clk 0:00:13]}  Rh1+ {[%clk 0:00:07]} 61. Kd2 {[%clk 0:00:13]}  Rxa1 {[%clk 0:00:08]} 62. Ke3 {[%clk 0:00:14]}  Bxf5 {[%clk 0:00:08]} 63. Kf4 {[%clk 0:00:14]}  Bg6 {[%clk 0:00:09]} 64. Ke5 {[%clk 0:00:14]}  Rd1 {[%clk 0:00:09]} 65. Kf4 {[%clk 0:00:14]}  Re1 {[%clk 0:00:10]} 66. Kf3 {[%clk 0:00:14]}  Re4 {[%clk 0:00:09]} 67. Kg3 {[%clk 0:00:12]}  a2 {[%clk 0:00:10]} 0-1


[Site "https://www.chess.com"]